fUST/lending_fUST_20241029
["ID","MTS","AMOUNT","RATE_DAILY","PERIOD"]
[340976113,1730199046309,-500.0,0.00022173,2]
[340976114,1730199046319,-500.0,0.00022173,2]
[340976115,1730199046329,-501.80429255,0.00022173,2]
[340976116,1730199046338,-500.0,0.00022173,2]
[340976117,1730199046347,-500.69202066,0.00022173,2]
[340976118,1730199046357,-500.0,0.00022173,2]
[340976119,1730199046367,-504.52070423,0.00022191,3]
[340976120,1730199046376,-504.27267186,0.00022191,3]
[340976121,1730199046386,-608.69904442,0.00022191,3]
[340976122,1730199046396,-507.40104037,0.00022191,3]
[340976123,1730199046405,-500.0,0.00022191,3]
[340976124,1730199046415,-500.0,0.00022191,3]
[340976125,1730199046425,-500.0,0.00022191,3]
[340976126,1730199046434,-159.28856172,0.00022191,3]
[340976127,1730199046444,-500.0,0.00022191,3]
[340976128,1730199046454,-500.0,0.00022191,3]
[340976129,1730199046464,-705.57,0.00022191,3]
[340976130,1730199046474,-500.0,0.00022191,3]
[340976131,1730199046555,-500.0,0.00022191,3]
[340976132,1730199046567,-500.0,0.00022191,3]
[340976133,1730199046578,-500.0,0.00022191,3]
[340976134,1730199046590,-500.0,0.00022191,3]
[340976135,1730199046602,-519.0,0.00022191,3]
[340976136,1730199046614,-589.06540577,0.00022191,3]
[340976137,1730199046625,-500.0,0.00022191,3]
[340976138,1730199046634,-500.0,0.00022191,3]
[340976139,1730199046645,-500.0,0.00022191,3]
[340976140,1730199046654,-500.0,0.00022191,3]
[340976141,1730199046665,-517.24526909,0.00022191,3]
[340976142,1730199046675,-500.0,0.00022191,3]
[340976143,1730199046686,-505.14,0.00022191,3]
[340976144,1730199046699,-544.44,0.00022191,3]
[340976145,1730199046709,-500.0,0.00022191,3]
[340976146,1730199046720,-500.0,0.00022191,3]
[340976147,1730199046731,-500.0,0.00022191,3]
[340976148,1730199046743,-590.81175406,0.00022191,3]
[340976149,1730199046754,-500.0,0.00022191,3]
[340976150,1730199046765,-500.0,0.00022191,3]
[340976151,1730199046776,-500.0,0.00022191,3]
[340976152,1730199046787,-419.44870416,0.00022191,3]
[340976153,1730199046798,-500.0,0.00022191,3]
[340976154,1730199046809,-590.25215965,0.00022191,3]
[340976155,1730199046819,-500.0,0.00022191,3]
[340976156,1730199046828,-477.03938638,0.00022191,3]
[340976157,1730199046838,-500.0,0.00022191,3]
[340976158,1730199046847,-178.57435663,0.00022191,3]
[340976159,1730199046857,-500.0,0.00022191,3]
[340976160,1730199046866,-355.7722072,0.00022191,3]
[340976161,1730199046876,-503.6535082,0.00022191,3]
[340976162,1730199046885,-500.0,0.00022191,3]
[340976163,1730199046895,-500.0,0.00022191,3]
[340976164,1730199046905,-500.0,0.00022191,3]
[340976165,1730199046914,-500.0,0.00022191,3]
[340976166,1730199046924,-500.0,0.00022191,3]
[340976167,1730199046934,-500.0,0.00022191,3]
[340976168,1730199046944,-500.0,0.00022191,3]
[340976169,1730199046953,-537.27,0.00022191,3]
[340976170,1730199046965,-372.95848181,0.00022191,3]
[340976171,1730199046974,-502.96447663,0.00022191,3]
[340976172,1730199046984,-500.0,0.00022191,3]
[340976173,1730199046993,-500.0,0.00022191,3]
[340976174,1730199047003,-507.11,0.00022191,3]
[340976175,1730199047012,-500.0,0.00022191,3]
[340976176,1730199047022,-500.0,0.00022191,3]
[340976177,1730199047032,-500.0,0.00022191,3]
[340976178,1730199047041,-500.0,0.00022191,3]
[340976179,1730199047051,-505.44827257,0.00022191,3]
[340976180,1730199047061,-503.24937743,0.00022191,3]
[340976181,1730199047071,-500.0,0.00022191,3]
[340976182,1730199047091,-503.46507909,0.00022191,3]
[340976183,1730199047109,-500.0,0.00022191,3]
[340976184,1730199047128,-500.0,0.00022191,3]
[340976185,1730199047150,-500.0,0.00022191,3]
[340976186,1730199047170,-500.0,0.00022191,3]
[340976187,1730199047188,-500.0,0.00022191,3]
[340976188,1730199047207,-500.0,0.00022191,3]
[340976189,1730199047223,-248.68551442,0.00022191,3]
[340976190,1730199047241,-500.0,0.00022191,3]
[340976191,1730199047261,-425.71705777,0.00022191,3]
[340976192,1730199047277,-794.02,0.00022191,3]
[340976193,1730199047292,-682.39,0.00022191,3]
[340976194,1730199047309,-407.93108845,0.00022191,3]
[340976195,1730199047327,-500.0,0.00022191,3]
[340976196,1730199047341,-500.0,0.00022191,3]
[340976197,1730199047355,-853.1,0.00022191,3]
[340976198,1730199047370,-500.0,0.00022191,3]
[340976199,1730199047387,-500.0,0.00022191,3]
[340976200,1730199047401,-500.0,0.00022191,3]
[340976201,1730199047416,-500.0,0.00022191,3]
[340976202,1730199047431,-509.34,0.00022191,3]
[340976203,1730199047445,-500.0,0.00022191,3]
[340976204,1730199047461,-500.0,0.00022191,3]
[340976205,1730199047476,-913.89,0.00022191,3]
[340976206,1730199047493,-500.0,0.00022191,3]
[340976207,1730199047508,-538.64886101,0.00022191,3]
[340976208,1730199047522,-511.96820602,0.00022191,3]
[340976209,1730199047537,-774.78,0.00022191,3]
[340976210,1730199047551,-500.0,0.00022191,3]
[340976211,1730199047566,-500.0,0.00022191,3]
[340976212,1730199047580,-500.0,0.00022191,3]
[340976213,1730199047595,-500.0,0.00022191,3]
[340976214,1730199047610,-500.0,0.00022191,3]
[340976215,1730199047625,-581.82,0.00022191,3]
[340976216,1730199047640,-537.53934047,0.00022191,3]
[340976217,1730199047654,-638.22,0.00022191,3]
[340976218,1730199047669,-572.77,0.00022191,3]
[340976219,1730199047684,-500.0,0.00022191,3]
[340976220,1730199047702,-500.0,0.00022191,3]
[340976221,1730199047718,-500.0,0.00022191,3]
[340976222,1730199047733,-500.0,0.00022191,3]
[340976223,1730199047749,-500.0,0.00022191,3]
[340976224,1730199047763,-500.0,0.00022191,3]
[340976225,1730199047780,-500.0,0.00022191,3]
[340976226,1730199047795,-500.0,0.00022191,3]
[340976227,1730199047810,-500.0,0.00022191,3]
[340976228,1730199047827,-504.83740048,0.00022191,3]
[340976229,1730199047843,-582.17508284,0.00022191,3]
[340976230,1730199047853,-500.0,0.00022191,3]
[340976231,1730199047863,-500.0,0.00022191,3]
[340976232,1730199048042,-500.0,0.00022191,3]
[340976233,1730199048069,-500.0,0.00022191,3]
[340976234,1730199048079,-500.0,0.00022191,3]
[340976235,1730199048089,-500.0,0.00022191,3]
[340976236,1730199048099,-591.22,0.00022191,3]
[340976237,1730199048109,-535.39619573,0.00022191,3]
[340976238,1730199048118,-713.78,0.00022191,3]
[340976239,1730199048128,-500.0,0.00022191,3]
[340976240,1730199048138,-500.0,0.00022191,3]
[340976241,1730199048148,-500.0,0.00022191,3]
[340976242,1730199048158,-500.0,0.00022191,3]
[340976243,1730199048167,-500.0,0.00022191,3]
[340976244,1730199048177,-500.0,0.00022191,3]
[340976245,1730199048187,-500.0,0.00022191,3]
[340976246,1730199048196,-500.0,0.00022191,3]
[340976247,1730199048205,-634.53,0.00022191,3]
[340976248,1730199048215,-500.0,0.00022191,3]
[340976249,1730199048225,-500.0,0.00022191,3]
[340976250,1730199048235,-500.0,0.00022191,3]
[340976251,1730199048244,-500.0,0.00022191,3]
[340976252,1730199048253,-500.0,0.00022191,3]
[340976253,1730199048263,-500.0,0.00022191,3]
[340976254,1730199048272,-597.87,0.00022191,3]
[340976255,1730199048281,-500.0,0.00022191,3]
[340976256,1730199048290,-500.0,0.00022191,3]
[340976257,1730199048300,-500.0,0.00022191,3]
[340976258,1730199048309,-394.3440364,0.00022191,3]
[340976259,1730199048319,-500.0,0.00022191,3]
[340976260,1730199048328,-206.86569965,0.00022191,3]
[340976261,1730199048337,-500.0,0.00022191,3]
[340976262,1730199048347,-500.0,0.00022191,3]
[340976263,1730199048357,-500.0,0.00022191,3]
[340976264,1730199048366,-500.0,0.00022191,3]
[340976265,1730199048376,-500.0,0.00022191,3]
[340976266,1730199048385,-508.25586015,0.00022191,3]
[340976267,1730199048395,-500.0,0.00022191,3]
[340976268,1730199048404,-500.0,0.00022191,3]
[340976269,1730199048414,-500.0,0.00022191,3]
[340976270,1730199048423,-500.0,0.00022191,3]
[340976271,1730199048436,-500.0,0.00022191,3]
[340976272,1730199048446,-500.0,0.00022191,3]
[340976273,1730199048456,-500.0,0.00022191,3]
[340976274,1730199048466,-500.0,0.00022191,3]
[340976275,1730199048475,-500.0,0.00022191,3]
[340976276,1730199048485,-500.0,0.00022191,3]
[340976277,1730199048495,-500.0,0.00022191,3]
[340976278,1730199048504,-1003.15,0.00022191,3]
[340976279,1730199048514,-724.17,0.00022191,3]
[340976280,1730199048523,-501.7570489,0.00022191,3]
[340976281,1730199048533,-500.0,0.00022191,3]
[340976282,1730199048543,-500.0,0.00022191,3]
[340976283,1730199048552,-500.0,0.00022191,3]
[340976284,1730199048562,-500.0,0.00022191,3]
[340976285,1730199048572,-500.0,0.00022191,3]
[340976286,1730199048582,-848.62,0.00022191,3]
[340976287,1730199048592,-500.0,0.00022191,3]
[340976288,1730199048601,-511.46277478,0.00022191,3]
[340976289,1730199048611,-500.0,0.00022191,3]
[340976290,1730199048621,-500.0,0.00022191,3]
[340976291,1730199048631,-500.0,0.00022191,3]
[340976292,1730199048641,-500.0,0.00022191,3]
[340976293,1730199048651,-401.29936918,0.00022191,3]
[340976294,1730199048661,-500.0,0.00022191,3]
[340976295,1730199048671,-500.0,0.00022191,3]
[340976296,1730199048682,-517.15,0.00022191,3]
[340976297,1730199048694,-506.18,0.00022191,3]
[340976298,1730199048704,-500.0,0.00022191,3]
[340976299,1730199048713,-500.0,0.00022191,3]
[340976300,1730199048724,-500.0,0.00022191,3]
[340976301,1730199048734,-500.0,0.00022191,3]
[340976302,1730199048745,-613.96,0.00022191,3]
[340976303,1730199048755,-509.51395174,0.00022191,3]
[340976304,1730199048765,-500.0,0.00022191,3]
[340976305,1730199048776,-500.0,0.00022191,3]
[340976306,1730199048787,-500.0,0.00022191,3]
[340976307,1730199048797,-500.0,0.00022191,2]
[340976308,1730199048807,-500.0,0.00022191,3]
[340976309,1730199048816,-500.0,0.00022191,3]
[340976310,1730199048826,-500.0,0.00022191,3]
[340976311,1730199048838,-500.0,0.00022191,3]
[340976312,1730199048849,-500.0,0.00022191,3]
[340976313,1730199048860,-500.0,0.00022191,3]
[340976314,1730199048870,-500.0,0.00022191,3]
[340976315,1730199048884,-500.0,0.00022191,3]
[340976316,1730199048895,-627.4400181,0.00022191,3]
[340976317,1730199048905,-500.0,0.00022191,3]
[340976318,1730199048917,-500.0,0.00022191,3]
[340976319,1730199048927,-582.9,0.00022191,3]
[340976320,1730199048938,-582.54,0.00022191,3]
[340976321,1730199048948,-500.0,0.00022191,3]
[340976322,1730199048958,-500.0,0.00022191,3]
[340976323,1730199048969,-500.0,0.00022191,3]
[340976324,1730199048981,-500.0,0.00022191,3]
[340976325,1730199048991,-646.41,0.00022191,3]
[340976326,1730199049000,-500.0,0.00022191,3]
[340976327,1730199049010,-500.0,0.00022191,3]
[340976328,1730199049020,-500.0,0.00022191,3]
[340976329,1730199049030,-500.0,0.00022191,3]
[340976330,1730199049040,-497.27298874,0.00022191,3]
[340976354,1730199049458,-5.79724728,0.00022191,3]
[340976356,1730199049468,-500.0,0.00022191,3]
[340976357,1730199049478,-500.0,0.00022191,3]
[340976359,1730199049490,-500.0,0.00022191,3]
[340976361,1730199049500,-500.0,0.00022191,3]
[340976363,1730199049509,-483.92995535,0.00022191,3]
[340976365,1730199049518,-500.0,0.00022191,3]
[340976366,1730199049528,-503.38852272,0.00022191,3]
[340976368,1730199049538,-265.88254335,0.00022191,3]
[340976380,1730199049682,-362.72745665,0.00022191,3]
[340976382,1730199049706,-821.31,0.00022191,3]
[340976384,1730199049720,-218.84197396,0.00022191,3]
[340976386,1730199049735,-284.40802604,0.00022191,3]
[340976388,1730199049747,-500.0,0.00022191,3]
[340976390,1730199049758,-500.0,0.00022191,3]
[340976392,1730199049770,-509.86861745,0.00022191,3]
[340976394,1730199049779,-539.32,0.00022191,3]
[340976395,1730199049789,-500.0,0.00022191,3]
[340976397,1730199049798,-500.0,0.00022191,3]
[340976399,1730199049808,-545.58,0.00022191,3]
[340976400,1730199049818,-500.0,0.00022191,3]
[340976401,1730199049828,-500.0,0.00022191,3]
[340976402,1730199049839,-500.0,0.00022191,3]
[340976403,1730199049849,-241.3814103,0.00022191,3]
[340976404,1730199049858,-500.0,0.00022191,3]
[340976405,1730199049868,-500.0,0.00022191,3]
[340976406,1730199049878,-500.0,0.00022191,3]
[340976407,1730199049888,-500.0,0.00022191,3]
[340976408,1730199049898,-122.02749011,0.00022191,3]
[340976409,1730199050132,-377.97250989,0.00022191,3]
[340976410,1730199050143,-500.0,0.00022191,3]
[340976411,1730199050153,-500.0,0.00022191,3]
[340976412,1730199050164,-792.13,0.00022191,3]
[340976413,1730199050177,-411.405772,0.00022191,7]
[340976414,1730199050187,-264.90284072,0.00022191,3]
[340976415,1730199050322,-259.04715928,0.00022191,3]
[340976416,1730199050334,-411.405772,0.00022191,7]
[340976417,1730199050344,-290.88689146,0.00022191,3]
[340976418,1730199050354,-525.01427026,0.00022191,3]
[340976419,1730199050363,-411.405772,0.00022191,7]
[340976420,1730199050373,-500.0,0.00022191,3]
[340976421,1730199050383,-500.0,0.00022191,3]
[340976422,1730199050393,-579.86,0.00022191,3]
[340976423,1730199050402,-411.405772,0.00022191,7]
[340976424,1730199050413,-411.405772,0.00022191,7]
[340976425,1730199050425,-411.405768,0.00022191,7]
[340976426,1730199050434,-500.0,0.00022191,3]
[340976427,1730199050446,-500.0,0.00022191,3]
[340976428,1730199050457,-500.0,0.00022191,3]
[340976429,1730199050468,-500.0,0.00022191,3]
[340976430,1730199050479,-500.0,0.00022191,3]
[340976431,1730199050490,-260.53854282,0.00022191,3]
[340976432,1730199050500,-91.00608662,0.00022191,3]
[340976433,1730199050515,-408.99391338,0.00022191,3]
[340976434,1730199050525,-500.0,0.00022191,3]
[340976435,1730199050534,-500.0,0.00022191,3]
[340976436,1730199050544,-500.0,0.00022191,3]
[340976437,1730199050555,-500.0,0.00022191,3]
[340976438,1730199050566,-316.34744554,0.00022191,3]
[340976439,1730199050600,-183.65255446,0.00022191,3]
[340976440,1730199050610,-560.51,0.00022191,3]
[340976441,1730199050619,-696.16,0.00022191,3]
[340976442,1730199050628,-200.0407122,0.00022191,3]
[340976443,1730199102062,194.15815524,0.0002077,2]
[340976956,1730199496261,200.000001,0.00013973,2]
[340976962,1730199635948,-300.0,0.0002016,2]
[340976963,1730199635972,-300.0,0.0002016,2]
[340976964,1730199635995,-24900.0,0.00020161,2]
[340976965,1730199636018,-925.6168726,0.00020412,2]
[340976966,1730199636041,-4585.012512,0.00020412,2]
[340976967,1730199636066,-164.820456,0.0002051,2]
[340976968,1730199636091,-164.820456,0.00020566,2]
[340976969,1730199636115,-164.820456,0.00020622,2]
[340976970,1730199636137,-206.38594604,0.0002067,2]
[340976971,1730199636162,-164.820456,0.00020678,2]
[340976972,1730199636185,-1218.237501,0.00020698,2]
[340976973,1730199636212,-164.820456,0.00020734,2]
[340976974,1730199636234,-163.0250217,0.0002077,2]
[340976975,1730199636259,-220.9494135,0.0002077,2]
[340976976,1730199636284,-164.820456,0.00020791,2]
[340976977,1730199636308,-164.820456,0.00020847,2]
[340976978,1730199636332,-164.820456,0.00020903,2]
[340976979,1730199636358,-164.820456,0.00020959,2]
[340976980,1730199636383,-164.820456,0.00021016,2]
[340976981,1730199636407,-266.721802,0.00021043,2]
[340976982,1730199636430,-164.820456,0.00021072,2]
[340976983,1730199636457,-4585.012512,0.00021097,2]
[340976984,1730199636479,-164.820456,0.00021128,2]
[340976985,1730199636505,-164.820456,0.00021184,2]
[340976986,1730199636529,-164.820456,0.00021241,2]
[340976987,1730199636553,-164.820456,0.00021297,2]
[340976988,1730199636577,-266.40700163,0.00021297,2]
[340976989,1730199636599,-164.820456,0.00021353,2]
[340976990,1730199636623,-164.820456,0.00021409,2]
[340976991,1730199636646,-164.820456,0.00021466,2]
[340976992,1730199636671,-164.820456,0.00021522,2]
[340976993,1730199636695,-164.820456,0.00021578,2]
[340976994,1730199636718,-4585.012512,0.00021781,2]
[340976995,1730199636740,-803.2928197,0.00021817,2]
[340976996,1730199636763,-803.29281969,0.00021886,2]
[340976997,1730199636785,-218.91790345,0.00021916,2]
[340976998,1730199636808,-201.07602893,0.00021916,2]
[340976999,1730199636831,-500.0,0.00021916,2]
[340977000,1730199636856,-500.0,0.00021916,2]
[340977001,1730199636881,-222.21939176,0.00021916,2]
[340977002,1730199636903,-188.28637993,0.00021916,2]
[340977003,1730199636928,-500.0,0.00021916,2]
[340977004,1730199636954,-500.0,0.00021916,2]
[340977005,1730199636977,-500.0,0.00021916,2]
[340977006,1730199637001,-541.83814619,0.00021916,2]
[340977007,1730199637025,-500.0,0.00021916,2]
[340977008,1730199637049,-411.58250629,0.00021916,2]
[340977009,1730199637072,-306.16949499,0.00021916,2]
[340977010,1730199637095,-500.0,0.00021917,3]
[340977011,1730199637118,-500.0,0.00021917,3]
[340977012,1730199637140,-500.0,0.00021917,3]
[340977013,1730199637162,-500.0,0.00021917,3]
[340977014,1730199637184,-500.0,0.00021917,3]
[340977015,1730199637207,-500.0,0.00021917,3]
[340977016,1730199637232,-500.0,0.00021917,3]
[340977017,1730199637339,-500.0,0.00021917,3]
[340977018,1730199637384,-500.0,0.00021917,3]
[340977019,1730199637408,-837.73,0.00021917,3]
[340977020,1730199637432,-504.86416501,0.00021917,3]
[340977021,1730199637459,-504.23830069,0.00021917,3]
[340977022,1730199637483,-500.0,0.00021917,3]
[340977023,1730199637507,-500.0,0.00021917,3]
[340977024,1730199637531,-502.70550443,0.00021917,3]
[340977025,1730199637554,-500.0,0.00021917,3]
[340977026,1730199637579,-710.21,0.00021917,3]
[340977027,1730199637602,-564.78632447,0.00021917,3]
[340977032,1730199689678,-300.0,0.00021916,2]
[340977033,1730199689702,-300.0,0.00021916,2]
[340977034,1730199689726,-111.38367553,0.00021917,3]
[340977035,1730199689750,-440.00461823,0.00021917,3]
[340977036,1730199689773,-500.0,0.00021917,3]
[340977037,1730199689798,-533.33,0.00021917,3]
[340977038,1730199689823,-500.0,0.00021917,3]
[340977039,1730199689847,-503.41998529,0.00021917,3]
[340977040,1730199689870,-500.0,0.00021917,3]
[340977041,1730199689892,-585.03,0.00021917,3]
[340977042,1730199689916,-500.0,0.00021917,3]
[340977043,1730199689943,-500.0,0.00021917,3]
[340977044,1730199689969,-500.55845442,0.00021917,3]
[340977045,1730199689992,-500.0,0.00021917,3]
[340977046,1730199690021,-500.0,0.00021917,3]
[340977047,1730199690044,-500.0,0.00021917,3]
[340977048,1730199690067,-500.0,0.00021917,3]
[340977049,1730199690089,-507.69302859,0.00021917,3]
[340977050,1730199690111,-500.0,0.00021917,3]
[340977051,1730199690147,-500.0,0.00021917,3]
[340977052,1730199690204,-525.04,0.00021917,3]
[340977053,1730199690251,-500.0,0.00021917,3]
[340977054,1730199690292,-500.0,0.00021917,3]
[340977055,1730199690333,-503.21239165,0.00021917,3]
[340977056,1730199690371,-500.0,0.00021917,3]
[340977057,1730199690406,-500.0,0.00021917,3]
[340977058,1730199690443,-500.0,0.00021917,3]
[340977059,1730199690479,-500.0,0.00021917,3]
[340977060,1730199690510,-506.48436837,0.00021917,3]
[340977061,1730199690547,-500.0,0.00021917,3]
[340977062,1730199690584,-500.0,0.00021917,3]
[340977063,1730199690614,-521.76,0.00021917,3]
[340977064,1730199690653,-500.0,0.00021917,3]
[340977065,1730199690688,-541.95,0.00021917,3]
[340977066,1730199690721,-550.38352854,0.00021917,3]
[340977067,1730199690760,-500.0,0.00021917,3]
[340977068,1730199690798,-500.0,0.00021917,3]
[340977069,1730199690837,-500.0,0.00021917,3]
[340977070,1730199690872,-502.1795883,0.00021917,3]
[340977071,1730199690905,-500.0,0.00021917,3]
[340977072,1730199690939,-500.0,0.00021917,3]
[340977073,1730199690974,-500.0,0.00021917,3]
[340977074,1730199691009,-500.0,0.00021917,3]
[340977075,1730199691042,-500.0,0.00021917,3]
[340977076,1730199691077,-637.21443188,0.00021917,3]
[340977077,1730199691112,-581.66,0.00021917,3]
[340977078,1730199691146,-500.0,0.00021917,3]
[340977079,1730199691179,-500.0,0.00021917,3]
[340977080,1730199691216,-500.0,0.00021917,3]
[340977081,1730199691251,-340.08878112,0.00021917,3]
[340977082,1730199691284,-500.0,0.00021917,3]
[340977083,1730199691317,-500.0,0.00021917,3]
[340977084,1730199691348,-500.0,0.00021917,3]
[340977085,1730199691537,-500.0,0.00021917,3]
[340977086,1730199691577,-500.0,0.00021917,3]
[340977087,1730199691602,-500.0,0.00021917,3]
[340977088,1730199691628,-500.0,0.00021917,3]
[340977089,1730199691652,-500.0,0.00021917,3]
[340977090,1730199691676,-500.0,0.00021917,3]
[340977091,1730199691698,-502.8780655,0.00021917,3]
[340977092,1730199691720,-500.0,0.00021917,3]
[340977093,1730199691742,-500.0,0.00021917,3]
[340977094,1730199691765,-548.05,0.00021917,3]
[340977095,1730199691789,-500.0,0.00021917,3]
[340977096,1730199691814,-545.48833944,0.00021917,3]
[340977097,1730199691836,-500.0,0.00021917,3]
[340977098,1730199691858,-663.83,0.00021917,3]
[340977099,1730199691881,-500.0,0.00021917,3]
[340977100,1730199691904,-500.0,0.00021917,3]
[340977101,1730199691926,-500.0,0.00021917,3]
[340977102,1730199691951,-500.0,0.00021917,3]
[340977103,1730199691974,-500.0,0.00021917,3]
[340977104,1730199691996,-500.0,0.00021917,3]
[340977105,1730199692021,-500.0,0.00021917,3]
[340977106,1730199692044,-500.0,0.00021917,3]
[340977107,1730199692068,-500.0,0.00021917,3]
[340977108,1730199692090,-500.0,0.00021917,3]
[340977109,1730199692113,-500.0,0.00021917,3]
[340977110,1730199692135,-3723.8,0.00021917,2]
[340977111,1730199692158,-500.0,0.00021917,3]
[340977112,1730199692180,-3723.8,0.00021917,2]
[340977113,1730199692204,-919.56,0.00021917,3]
[340977114,1730199692227,-3723.8,0.00021917,2]
[340977115,1730199692250,-500.0,0.00021917,3]
[340977116,1730199692272,-3723.8,0.00021917,2]
[340977117,1730199692295,-3723.8,0.00021917,2]
[340977118,1730199692318,-3723.8,0.00021917,2]
[340977119,1730199692341,-3723.8,0.00021917,2]
[340977120,1730199692366,-3723.8,0.00021917,2]
[340977121,1730199692391,-3723.8,0.00021917,2]
[340977122,1730199692415,-3723.8,0.00021917,2]
[340977123,1730199692438,-3723.8,0.00021917,2]
[340977124,1730199692461,-3723.8,0.00021917,2]
[340977125,1730199692485,-3723.8,0.00021917,2]
[340977126,1730199692511,-3723.8,0.00021917,2]
[340977127,1730199692535,-3723.8,0.00021917,2]
[340977128,1730199692562,-3723.8,0.00021917,2]
[340977129,1730199692584,-3723.8,0.00021917,2]
[340977130,1730199692607,-3723.8,0.00021917,2]
[340977131,1730199692629,-3723.8,0.00021917,2]
[340977132,1730199692650,-3723.8,0.00021917,2]
[340977133,1730199692672,-3723.8,0.00021917,2]
[340977134,1730199692693,-3723.8,0.00021917,2]
[340977135,1730199692715,-3723.8,0.00021917,2]
[340977136,1730199692737,-3723.99511497,0.00021917,2]
[340977137,1730199692763,-508.46,0.00021917,3]
[340977138,1730199692785,-514.88,0.00021917,3]
[340977139,1730199692807,-777.9,0.00021917,3]
[340977140,1730199692831,-500.0,0.00021917,3]
[340977141,1730199692854,-500.0,0.00021917,3]
[340977142,1730199692875,-556.10086888,0.00021917,3]
[340977143,1730199692898,-500.0,0.00021917,3]
[340977144,1730199692920,-396.09529169,0.00021917,3]
[340977145,1730199692942,-500.0,0.00021917,3]
[340977146,1730199692964,-500.0,0.00021917,3]
[340977147,1730199692987,-500.0,0.00021917,3]
[340977148,1730199693010,-451.13922466,0.00021917,3]
[340977149,1730199693033,-500.0,0.00021917,3]
[340977150,1730199693056,-520.04378323,0.00021917,3]
[340977151,1730199693080,-500.0,0.00021917,3]
[340977152,1730199693105,-500.0,0.00021917,3]
[340977153,1730199693129,-500.0,0.00021917,3]
[340977154,1730199693154,-500.0,0.00021917,3]
[340977155,1730199693178,-588.38,0.00021917,3]
[340977156,1730199693202,-500.0,0.00021917,3]
[340977157,1730199693225,-500.0,0.00021917,3]
[340977158,1730199693251,-500.0,0.00021917,3]
[340977159,1730199693273,-500.0,0.00021917,3]
[340977160,1730199693296,-500.0,0.00021917,3]
[340977161,1730199693320,-500.0,0.00021917,3]
[340977162,1730199693344,-500.0,0.00021917,3]
[340977163,1730199693368,-500.0,0.00021917,3]
[340977164,1730199693392,-558.27,0.00021917,3]
[340977165,1730199693416,-500.0,0.00021917,3]
[340977166,1730199693441,-500.0,0.00021917,3]
[340977167,1730199693465,-500.0,0.00021917,3]
[340977168,1730199693489,-500.0,0.00021917,3]
[340977169,1730199693514,-500.0,0.00021917,3]
[340977170,1730199693548,-500.0,0.00021917,3]
[340977171,1730199693573,-500.0,0.00021917,3]
[340977172,1730199693598,-509.35383337,0.00021917,3]
[340977173,1730199693622,-500.0,0.00021917,3]
[340977174,1730199693649,-558.62,0.00021917,3]
[340977175,1730199693673,-500.0,0.00021917,3]
[340977176,1730199693801,-500.0,0.00021917,3]
[340977177,1730199693825,-338.16262634,0.00021917,3]
[340977181,1730199774242,-481.97569183,0.00021817,2]
[340977182,1730199774265,-481.97569181,0.00021906,2]
[340977183,1730199774290,-300.0,0.00021916,2]
[340977184,1730199774313,-300.0,0.00021916,2]
[340977185,1730199774337,-281.31737366,0.00021917,3]